Cogmind - Beta 9.6 @@@ ROGUE MODE // 2020.08.14 @ 17:35:45 Player: naoky Result: Self-destructed Performance ------------- Evolutions (1) 500 Regions Visited (2) 400 Robots Destroyed (17) 85 Value Destroyed (365) 365 Prototype IDs (3) 60 Alien Tech Used (0) 0 Bonus (0) 0 TOTAL SCORE: 1410 Bonus ------- None Cogmind --------- Core Integrity 52/400 Matter 300/300 Energy 99/100 System Corruption 0% Temperature Cool (0) Movement Core (50) Location -9/Materials Parts ------- > --- POWER (1) -------- (None) > --- PROPULSION (3) --- (None) > --- UTILITY (3) ------ Propulsion Shielding > --- WEAPON (2) ------- (None) > --- INVENTORY (4) ---- Light Ion Engine Weight Redist. System Signal Interpreter Seismic Analyzer Peak State ------------ > --- POWER ------------ Light Ion Engine > --- PROPULSION ------- Aluminum Leg Aluminum Leg > --- UTILITY ---------- Medium Storage Unit Propulsion Shielding > --- WEAPON ----------- Shotgun Maul > --- INVENTORY -------- Light Ion Engine Flight Unit Flight Unit Small Storage Unit Weight Redist. System Structural Scanner Signal Interpreter Seismic Analyzer [Rating: 9] Favorites ----------- Power Light Ion Engine Engine Light Ion Engine Propulsion Aluminum Leg Leg Aluminum Leg Flight Unit Flight Unit Utility Propulsion Shielding Device Weight Redist. System Storage Small Storage Unit Protection Propulsion Shielding Weapon Assault Rifle Energy Cannon Beam Cannon Ballistic Gun Assault Rifle Impact Weapon Maul Build | -11 -10 -9 ------- Run | Scr Mat Mat Slots Evolved 2 | . . 2 Power . | . . . Propulsion 1 | . . 1 Utility 1 | . . 1 Weapon . | . . . Parts Attached 27 | 6 12 9 Power 2 | 1 1 . Engine 2 | 1 1 . Core . | . . . Reactor . | . . . Propulsion 9 | 2 4 3 Treads . | . . . Leg 6 | 2 4 . Wheel . | . . . Hover . | . . . Flight 3 | . . 3 Utility 8 | 1 3 4 Device 1 | . . 1 Storage 5 | 1 1 3 Processor . | . . . Hackware . | . . . Protection 2 | . 2 . Artifact . | . . . Weapon 8 | 2 4 2 Energy Gun . | . . . Energy Cannon 1 | . 1 . Ballistic Gun 4 | 2 2 . Ballistic Cannon . | . . . Launcher . | . . . Special Weapon . | . . . Impact Weapon 3 | . 1 2 Slashing Weapon . | . . . Piercing Weapon . | . . . Special Melee Weapon . | . . . Unidentified Prototypes . | . . . Parts Lost 4 | . . 4 Power 1 | . . 1 Propulsion 2 | . . 2 Utility . | . . . Weapon 1 | . . 1 Highest Loss Streak 2 | . . 2 Average Slot Usage (%) 92 | . 98 53 Engine 13 | . 14 8 Leg 24 | . 28 1 Flight 2 | . . 17 Storage 12 | . 14 4 Protection 13 | . 13 11 Energy Cannon 7 | . 8 . Ballistic Gun 14 | . 16 1 Impact Weapon 3 | . 3 9 Naked Turns . | . . . Heaviest Build 18 | 10 18 18 Greatest Support 20 | 20 20 20 Greatest Overweight (x) 3 | 3 . . Average Overweight (x) . | . . . Largest Inventory Capacity 8 | 6 8 8 Average Capacity 6 | 5 6 4 Most Carried 8 | 3 8 8 Average Carried 5 | 1 5 4 Final Capacity 8 | 6 8 4 Final Carried 8 | 1 8 4 Class Distribution -------------------- 100% | Mutant Dominant Class ---------------- Mutant | -10/Materials Mutant | -9/Materials Resources | -11 -10 -9 ----------- Run | Scr Mat Mat Matter Collected 526 | 204 257 65 Remotely . | . . . Salvage Created 551 | . 413 138 Parts 29 | . 24 5 Haulers Intercepted 2 | . 2 . Recyclers Shooed . | . . . Parts Field Recycled . | . . . Retrieved Matter . | . . . Parts Self-Destructed . | . . . Prevented . | . . . Kills | -11 -10 -9 ------- Run | Scr Mat Mat Combat Hostiles Destroyed 14 | . 9 5 Melee 3 | . . 3 Guns 5 | . 5 . Cannons 4 | . 4 . Classes Destroyed 4 | . 4 . Hauler 2 | . 2 . Watcher 1 | . 1 . Swarmer 6 | . 3 3 Grunt 8 | . 6 2 Best Kill Streak 3 | . 3 3 Combat Bots Only 3 | . 3 3 Max Kills in Single Turn 1 | . 1 1 Gunslinging . | . . . Exploded . | . . . Melee 1 | . . 1 Uniques/NPCs Destroyed . | . . . Combat | -11 -10 -9 -------- Run | Scr Mat Mat Damage Taken 916 | . 417 499 Core 417 | . 69 348 Absorbed by Shields . | . . . Core Remaining (%) 86 | 100 72 . Volleys Fired 34 | . 34 . Largest 2 | . 2 . Hottest 80 | . 80 . Shots Fired 68 | . 68 . Gun 41 | . 41 . Cannon 27 | . 27 . Launcher . | . . . Special . | . . . Kinetic 41 | . 41 . Thermal 27 | . 27 . Explosive . | . . . Electromagnetic . | . . . Robot Hit Streak 8 | . 8 . Robot Miss Streak 3 | . 3 . Penetration Max . | . . . Secondary Targets . | . . . Shots Hit Robots 64 | . 44 20 Core Hits 21 | . 16 5 Critical Hits . | . . . Critical Kills . | . . . Critical Parts Destroyed . | . . . Melee Attacks 38 | . 5 33 Impact 38 | . 5 33 Slashing . | . . . Piercing . | . . . Sneak Attacks 1 | . 1 . Combat Hostiles . | . . . Follow-up Attacks . | . . . Damage Inflicted 1151 | . 691 460 Guns 222 | . 222 . Cannons 298 | . 298 . Explosions . | . . . Melee 626 | . 171 455 Ramming 5 | . . 5 Kinetic 222 | . 222 . Thermal 298 | . 298 . Explosive . | . . . Electromagnetic . | . . . Impact 626 | . 171 455 Slashing . | . . . Piercing . | . . . Highest Corruption 2 | . 2 . Average Corruption 1 | . 1 . Corruption Purged . | . . . Effects 11 | . 11 . Message Errors 3 | . 3 . Heat Flow Errors 2 | . 2 . Energy Discharges 4 | . 4 . Data Loss (minor) 1 | . 1 . Targeting Errors 1 | . 1 . Overload Shots . | . . . Overflow Damage 40 | . 7 33 Projectiles . | . . . Explosions . | . . . Melee 40 | . 7 33 Knockbacks 2 | . . 2 Impact 2 | . . 2 Kinetic . | . . . Secondary . | . . . Self-Inflicted Damage 2 | . . 2 Shots . | . . . Rammed 1 | . . 1 Targets Rammed 1 | . . 1 Kicked . | . . . Crushed . | . . . Highest Temperature 315 | . 315 . Average Temperature 92 | . 92 . Received Heat Transfer 270 | . 192 78 Siege Activations . | . . . Robots Corrupted . | . . . Combat Hostiles . | . . . Parts Fried 6 | . 4 2 Impact Corruptions 5 | . 1 4 Robots Melted . | . . . Combat Hostiles . | . . . Parts Melted . | . . . Heat Transferred 629 | . 629 . Parts Sabotaged . | . . . Parts Stolen . | . . . Parts Stripped . | . . . Power Chain Reactions . | . . . Missiles Intercepted . | . . . Alert | -11 -10 -9 ------- Run | Scr Mat Mat Peak Influence 128 | . 100 128 Average Influence 41 | . 38 71 Maximum Alert Level . | . . . Low Security (%) 100 | 100 100 100 Level 1 . | . . . Level 2 . | . . . Level 3 . | . . . Level 4 . | . . . Level 5 . | . . . High Security . | . . . Max Security . | . . . Squads Dispatched 1 | . 1 . Investigation 1 | . 1 . Extermination . | . . . Reinforcement . | . . . Assault . | . . . Garrison . | . . . Intercept . | . . . Construction Impeded . | . . . Haulers Reinforced . | . . . Stealth | -11 -10 -9 --------- Run | Scr Mat Mat Distress Signals 2 | . 1 1 Communications Jammed . | . . . Distress Signals . | . . . Times Spotted 24 | . 14 10 Peak Tracking Total 6 | . 3 6 Tactical Retreats 1 | . . 1 Traps | -11 -10 -9 ------- Run | Scr Mat Mat Traps Triggered 3 | . 3 . Indirectly . | . . . Trap Hack Attempts . | . . . Triggered . | . . . Disarmed . | . . . Reprogrammed . | . . . Reused . | . . . Traps Extracted . | . . . Installed . | . . . Triggered . | . . . Machines | -11 -10 -9 ---------- Run | Scr Mat Mat Machines Disabled . | . . . Max in Single Turn . | . . . Machines Sabotaged . | . . . Garrisons Compromised . | . . . Overloaded Fab Kills . | . . . Fab Network Shutdowns . | . . . Hacking | -11 -10 -9 --------- Run | Scr Mat Mat Machines Accessed 11 | . 9 2 Terminals 8 | . 7 1 Fabricators . | . . . Repair Stations 1 | . 1 . Recycling Units 1 | . 1 . Scanalyzers 1 | . . 1 Garrison Access . | . . . Total Hacks 25 | . 17 8 Successful 16 | . 10 6 Failed 9 | . 7 2 Catastrophic 2 | . 1 1 Database Lockouts . | . . . Manual 5 | . 5 . Terminals 12 | . 10 2 Fabricators . | . . . Repair Stations 3 | . 3 . Recycling Units 4 | . 4 . Scanalyzers 6 | . . 6 Garrison Access . | . . . Terminal Hacks 4 | . 4 . Prototype ID Bank 2 | . 2 . Terminal Index 1 | . 1 . Unreport Threat 1 | . 1 . Fabricator Hacks . | . . . Repair Station Hacks 2 | . 2 . Scan Component 1 | . 1 . Repair 1 | . 1 . Recycling Unit Hacks 4 | . 4 . Recycle Component 1 | . 1 . Process 1 | . 1 . Report Inventory 1 | . 1 . Retrieve Matter 1 | . 1 . Scanalyzer 6 | . . 6 Insert Component 3 | . . 3 Analyze 3 | . . 3 Garrison Access Hacks . | . . . Unauthorized Hacks . | . . . Terminals . | . . . Fabricators . | . . . Repair Stations . | . . . Recycling Units . | . . . Scanalyzers . | . . . Garrison Access . | . . . Data Cores Recovered . | . . . Used . | . . . Hacking Detections 9 | . 7 2 Full Trace Events . | . . . Feedback Events . | . . . Feedback Blocked . | . . . Robot Schematics Acquired . | . . . Robots Built . | . . . Matter . | . . . Time . | . . . Total Robot Build Rating . | . . . Part Schematics Acquired 3 | . . 3 Parts Built . | . . . Matter . | . . . Time . | . . . Total Part Build Rating . | . . . Parts Repaired 1 | . 1 . Time 26 | . 26 . Parts Recycled 1 | . 1 . Recycled Matter 28 | . 28 . Retrieved Matter 28 | . 28 . Retrieved Components . | . . . Parts Scanalyzed 3 | . . 3 Part Schematics Acquired 3 | . . 3 Parts Damaged 1 | . . 1 Bothacking | -11 -10 -9 ------------ Run | Scr Mat Mat Used RIF Installer . | . . . Robots Hacked . | . . . Non-combat . | . . . Combat . | . . . Robot Hacks Applied . | . . . Relay Couplers Released . | . . . Robots Rewired . | . . . Allies Hacked . | . . . Hacks Repelled . | . . . Allies | -11 -10 -9 -------- Run | Scr Mat Mat Total Allies . | . . . Largest Group . | . . . Highest-Rated Group . | . . . Highest-Rated Ally . | . . . Total Orders . | . . . Ally Attacks . | . . . Total Damage . | . . . Kills . | . . . Allies Corrupted . | . . . Allies Melted . | . . . Intel | -11 -10 -9 ------- Run | Scr Mat Mat Robot Analysis Total . | . . . Derelict Logs Recovered . | . . . Drone Launches . | . . . Drone Recoveries . | . . . Exploration | -11 -10 -9 ------------- Run | Scr Mat Mat Turns Passed 1417 | 58 1179 180 Spaces Moved 968 | 44 800 124 Core 34 | 19 . 15 Treads . | . . . Legs 832 | 25 800 7 Wheels . | . . . Hover . | . . . Flight 102 | . . 102 Fastest Speed 37 | 50 120 37 Average Speed 109 | 107 120 43 Slowest Speed 200 | 200 120 120 Overloaded Moves . | . . . Propulsion Burnouts . | . . . Robots Hopped . | . . . Cave-ins Triggered . | . . . Exploration Rate (%) 38 | 3 96 17 Regions Visited 2 Branch Regions . Pre-discovered Areas . | . . . Known Exits Taken . | . . . Unknown Exits Taken 2 | 1 1 . Scrap Searched . | . . . Spaces Dug . | . . . Terrain Destroyed . | . . . Melee . | . . . Projectile . | . . . AOE . | . . . Actions | -11 -10 -9 --------- Run | Scr Mat Mat Total 1183 | 52 942 189 Wait 77 | . 71 6 Move 966 | 43 799 124 Hop . | . . . Pick Up 17 | 3 11 3 Fast Attach 16 | 4 9 3 Attach 9 | 2 1 6 Detach 4 | . . 4 Swap 2 | . 2 . Drop 19 | . 10 9 Fire 34 | . 34 . Melee 38 | . 5 33 Ram 1 | . . 1 Kick . | . . . Crush . | . . . Escape Stasis . | . . . Rewire . | . . . Trap . | . . . Miscellaneous . | . . . Route ------- -11/Scrapyard -10/Materials (discovered 5 exits: *Mat x3 / [*Min x2]) -9/Materials (discovered 1 exit: [*Min]) History --------- Turn | Location | Event 19 | -11/Scrapyard | Discovered new exit (range 14) 59 | -11/Scrapyard | Entered Materials 193 | -10/Materials | Repaired Assault Rifle 313 | -10/Materials | Build established: Mutant 398 | -10/Materials | Discovered new exit (range 14) 582 | -10/Materials | Discovered new exit (range 16) 705 | -10/Materials | Discovered new exit (range 3) 768 | -10/Materials | Discovered new exit (range 12) 1216 | -10/Materials | Discovered new exit (range 6) 1238 | -10/Materials | Entered another Materials area 1238 | -9/Materials | Evolved 2 slots: Propulsion x1, Utility x1 1381 | -9/Materials | Core integrity fell below 50% 1411 | -9/Materials | Core integrity fell below 20% 1418 | -9/Materials | Discovered new exit (range 11) 1418 | -9/Materials | Self-destructed Last Messages --------------- 01359_ L-31 Rogue knocked back. 01360_ Flight Unit destroyed. 01370_ Lgt. Ion Engine destroyed. 01382_ K-01 Serf collects debris. 01398_ Destroyed Ion Engine. 01398_ G-34 Mercenary system corrupted by crushing effect. 01399_ G-34 Mercenary system terminally corrupted. 01399_ Heat Sink fried. 01399_ Sml. Laser fried. 01399_ K-01 Serf cleans the Fusion Modulator. 01408_ Maul destroyed. 01408_ Flight Unit destroyed. 01410_ Slammed into L-31 Rogue. Ramming works as a last resort when unarmed or blocked, but can have serious negative consequences. 01410_ L-31 Rogue knocked back. 01411_ Acquired 15 matter. 01411_ K-01 Serf collects debris. 01417_ W-16 Scout sends out distress signal. 01418_ EXIT=FOUND Map ----- +----------------------------------------------------+ | ??????????????????????????????????# # !"" ! #?? | | ??????????????????????????????????# # S"" #?? | | ??????????????????????????????????# # "" !#?? | | ??????????????????????????????????# ##########?? | | ???????????????????????#####??????# # #? | | ???????????????????????# [######## + """ ""???? | | ???????????????????????# T ! # """ """??? | | ???????????????????????# ######## # """ """ #? | | ???????????????????????## ######### # #? | | ????????????????????????#*# # # #? | | ????????????????##+######%#*= # # #? | | ????????????????# %+^""" # # #? | | ???????????###### !#!""" # ###########? | | ?????????? [[ # """ # #??????????? | | ?????????? [[ ######### #??????????? | | ?????????? [ #???????# #??????????? | | ?????????? #???????# ??????????? | | ?????????? #???????# ??????????? | | ?????????? ##### #???????# ??????????? | | ??????????? ????# #???????+ ??????????? | | ??????????? #####?????# #???????? ??????????? | | ????????????????????????# #??????????????????????? | | ????????????????????????#+########???????????????? | | ????????????????????????# #???????????????? | | ????????????????????????# #???????????????? | | ????????????????????????#@ w s Y< #?????????? | | ????????????????????????# #???????????????? | | ????????????????????????# #???????????????? | | ????????????????????????# #???????????????? | | ????????????????????????# #???????????????? | | ????????????????????????# #???????????????? | | ????????????????????????# #???????????????? | | ????????????????????????##########???????????????? | | ?????????????????????????????????????????????????? | | ?????????????????????????????????????????????????? | | ?????????????????????????????????????????????????? | | ?????????????????????????????????????????????????? | | ?????????????????????????????????????????????????? | | ?????????????????????????????????????????????????? | | ?????????????????????????????????????????????????? | | ?????????????????????????????????????????????????? | | ?????????????????????????????????????????????????? | | ?????????????????????????????????????????????????? | | ?????????????????????????????????????????????????? | | ?????????????????????????????????????????????????? | | ?????????????????????????????????????????????????? | | ?????????????????????????????????????????????????? | | ?????????????????????????????????????????????????? | | ?????????????????????????????????????????????????? | | ?????????????????????????????????????????????????? | +----------------------------------------------------+ Best States ------------- Heat Dissipation 28 Energy Generation 10 Energy Capacity 125 Matter Stores 300 Matter Capacity 300 Sight Range 16 Terrain Scan Density 10 Additional Mass Support 6 Armor Coverage 150 Propulsion Shielding 33 Evasion (%) 62 Item Schematics ----------------- Med. Storage Unit | -9/Materials | Scanalyzed Flight Unit | -9/Materials | Scanalyzed Weight Redist. System | -9/Materials | Scanalyzed Robot Schematics ------------------ None Fabricated ------------ Nothing Alien Tech Used ----------------- None Achievements -------------- None Challenges ------------ None Game ------ Seed ParticleSurveybotCloak Manual? 0 Play Time 00:34:51 Cumulative 19.5 hours Start 2020.08.14 @ 15:06:24 End 2020.08.14 @ 17:35:45 Sessions 1 Manual Loads 0 Difficulty Rogue Special Mode None Game No. 13 Rogue 13 Adventurer 0 Explorer 0 Win Type - Total 0 Types 0/0/0/0/0/0/0 Lore% 5 Gallery% 23 Achievement% 19 Wizard Run 0 Options --------- ASCII 0 Keyboard 1 Movement Vi Keybinds 0 Fullscreen 1 Font 24/Terminus Map View 76x50 Tactical HUD 1 Map Filters NONE Filters NONE Steam 1 RUN: 3f26a339-32e9-4947-8974-afd89006ed63